{"text_format":"1","workbook":"xlsx","n_sheets":11,"sheets":["Info","Daten","Deckblatt","11 NW Mindestgeb"," 1 Ansuchen LF","7 Katalog Kanal","7 Katalog ARA","7 Katalog WVA","ReNW","ReZu","KoVerf"],"not_rendered":{"charts":0,"images":5,"macros":1,"external_links":0,"defined_names":6,"comments":1,"pivot_tables":0},"unopened":[],"bounds":{"document_bytes":16777216,"sheet_cells":100000,"rows_first":2000,"rows_last":500,"rows_between":2000,"halvings":0,"cell_chars":16384,"cell_head_chars":4096},"cells_cut":0,"cells_raw":0,"read":"whole","date_system":"1900"}

{"sheet":"Info","index":0,"n_rows":66,"n_cols":5,"rows_kept":66,"cut":false,"hidden":false,"merged":[[64,2,64,4],[9,2,9,4],[11,2,11,4],[13,2,13,4],[17,1,17,4],[48,3,48,4],[25,2,26,4],[27,2,28,4],[30,2,31,4],[32,2,33,4]]}
[null,"2017-06-29"]
[null,"Version 2020"]
[]
[null,"Hilfe zum Ausfüllen der Formulare"]
[]
[null,"Alle Kostenangaben sind ohne Mehrwertsteuer (ohne Ust.) anzugeben. "]
[]
[null,"Welche Felder sind auszufüllen ?"]
[]
[null,null,"Die grün hinterlegten Felder sind zum Ausfüllen."]
[]
[null,null,"Die blauen Felder sind durch Auswahllisten (Dropdown) zu befüllen. Hier gibt es vorgeschlagene Werte/Texte. Damit die Auswahl funktioniert, bitte unbedingt Zelle markieren."]
[]
[null,null,"Die gelb hinterlegten Felder werden automatisch berechnet oder übernommen."]
[]
[null,"Welches Blatt wird als erstes ausgefüllt ?"]
[]
[null,"Da viele Daten automatisch übernommen werden, ist folgende Reihenfolge beim Ausfüllen der einzelnen Tabellenblätter sinnvollerweise einzuhalten:"]
[null,"1.","Daten [Daten]"]
[null,"2.","Deckblatt [Deckblatt zum Ansuchen]"]
[null,"3.","NW Mindestgeb [Nachweis Mindestgebühr Musterhaus Steiermark]"]
[null,"4.","Katalog [nur bei alleiniger Landesförderung]"]
[null,"5.","Ansuchen"]
[]
[null,"zu 1.","Daten [Daten]"]
[null,null,"Die Daten aus dem Ansuchenformular des Bundes können kopiert werden und mit \"Werte einfügen\" eingefügt werden."]
[]
[null,null,"Die Anlagenart ist unbedingt auszuwählen!"]
[]
[null,"zu 2.","Deckblatt [Deckblatt zum Ansuchen]"]
[null,null,"Im Dropdownfeld (B7) ist auszuwählen, ob es sich um ein Ansuchen \"um Bundes- und Landesförderung\" oder \"um alleinige Landesförderung\" handelt. Dementsprechend der Art des Ansuchens werden die erforderlichen Beilagen markiert (x)."]
[]
[null,null,"In den Dropdownfeldern \"beigelegt\" (Spalte K) ist anzugeben, ob Die Beilage angefügt (JA) oder nicht angefügt (NEIN) ist."]
[]
[]
[null,"für Ansuchen um alleinige Landesförderung"]
[null,"zu 4.","Katalog Kanal im Detail:"]
[null,null,"Bezeichnung: ","Strangbezeichnung, Bezeichnung Pumpwerk/Regenüberlauf etc."]
[null,null,"E, S od. A:","E ... Errichtung, S ... Sanierung, A … Anpassung "]
[null,null,null,"(selbst eintragen oder im Scrollbalken anklicken)"]
[null,null,"Kategorie:","1 ... ff. Hausanschlussleitung","2 ... Schmutzwasserkanal"]
[null,null,null,"3 ... Mischwasserkanal","4 ... Regenwasserkanal"]
[null,null,null,"5 ... Pumpwerke,","6 ... Sonstiges (z.B. RÜB, etc) "]
[null,null,"spez. Kosten:","Kosten pro Laufmeter / pro Stück Pumpwerk / pro Stück Regenüberlauf etc."]
[]
[null,null,"neue Zeilen mittels Schaltfeld \"Zeilen einfügen\" anlegen."]
[]
[null,"zu 4.","Katalog ARA im Detail:"]
[null,null,"Bezeichnung:","Name der ARA, Anlagenteile auflisten (z.B. Zulaufpumpwerk, Rechen – Spalt-weite 10mm, belüfteter Sandfang mit Fettabscheider, Mengenmessung – IDM, 2 Belebungsbecken je 1000 m³, usw.)"]
[]
[null,null,"Kosten können nach Wirtschaftszweigen oder nach Anlagenteilen gegliedert angeführt werden."]
[]
[null,"zu 4.","Katalog WVA im Detail:"]
[null,null,"Bezeichnung: ","Leitungsbezeichnung, Bezeichnung für Behälter, Aufbereitung etc."]
[null,null,"E, S od. A:","E...Errichtung, S...Sanierung, A...Anpassung"]
[null,null,null,"(selbst eintragen oder im Scrollbalken anklicken)"]
[null,null,"Kategorie:","1 ... ff. Hausanschlussleitung, ","2 ... Wasserleitungen"]
[null,null,null,"3 ... Quellen","4 ... Brunnen"]
[null,null,null,"5 ... Aufbereitung","6 ... Speicher 1"]
[null,null,null,"7 ... Speicher 2 ","8 ... Speicher 3"]
[null,null,null,"9 ... Sonstiges (z.B. Steuerung)"]
[null,null,null,"(selbst eintragen oder im Scrollbalken anklicken)"]
[null,null,"spez. Kosten:","Kosten pro Laufmeter / pro m³ Behältervolumen / pro Aufbereitung etc."]
[]
[null,null,"Hinweis für Mengenangabe (m³, Anzahl): Wenn für ein Anlageteil mehrere Katalogszeilen benötigt werden (z.B. Baumeister, Technik, etc.), bitte nur einmal die Mengenangabe angeben. Für die restlichen Zeilen einfach die Kosten in der entsprechenden Spalte ausfüllen (ohne m³/Stück und spezifischen Kosten)."]
[null,null,"neue Zeilen mittels Schaltfeld \"Zeilen einfügen\" anlegen."]

{"sheet":"Daten","index":1,"n_rows":36,"n_cols":3,"rows_kept":36,"cut":false,"hidden":false,"merged":[[2,1,2,8],[32,3,32,8],[28,3,28,4],[27,3,27,4],[29,3,29,4],[4,3,4,8],[5,3,5,8],[6,3,6,8],[7,3,7,8],[8,3,8,8],[9,3,9,8],[10,3,10,8],[11,3,11,8],[12,3,12,8],[15,3,15,8],[16,3,16,8],[17,3,17,8],[35,3,35,4],[18,3,18,8],[19,3,19,8],[20,3,20,8],[21,3,21,8],[25,3,25,8],[33,3,33,4]]}
[null,{"$f":"Info!B2","v":"Version 2020"}]
[null,"Daten"]
[null,"Die Daten aus dem Ansuchenformular des Bundes können kopiert werden und hier mit \n\"Werte einfügen\" eingefügt werden."]
[null,null,"Förderungswerber"]
[null,null,"Name"]
[null,null,"Rechtsform"]
[null,null,"Ort"]
[null,null,"Postleitzahl"]
[null,null,"Straße/Nummer"]
[null,null,"Telefonnummer"]
[null,null,"Telefaxnummer"]
[null,null,"E-Mail"]
[null,null,"Ansprechperson / Durchwahl"]
[]
[null,null,"Projektant"]
[null,null,"Name"]
[null,null,"Ort"]
[null,null,"Postleitzahl"]
[null,null,"Straße/Nummer"]
[null,null,"Telefonnummer"]
[null,null,"E-Mail"]
[null,null,"Ansprechperson / Durchwahl"]
[]
[null,null,"Bauabschnittsdaten"]
[null,"WVA","Anlagenart"]
[null,"ABA","Kurzbezeichnung  "]
[null,null,"Bauabschnitt  "]
[null,null,"Baubeginn geplant"]
[null,null,"Funktionsfähigkeit geplant"]
[null,null,"förderfähige Investitionskosten"]
[]
[null,null,"Standortgemeinde"]
[null,null,"Gemeinde"]
[null,null,"Gemeindekennziffer"]
[]
[null,null,"Antragsdatum"]

{"sheet":"Deckblatt","index":2,"n_rows":51,"n_cols":14,"rows_kept":51,"cut":false,"hidden":false,"merged":[[3,12,3,13],[47,1,47,2],[47,3,47,13],[11,9,11,13],[41,3,41,13],[46,1,46,2],[46,3,46,13],[38,3,38,9],[7,1,7,9],[8,1,8,13],[45,3,45,13],[43,1,43,2],[43,3,43,13],[44,1,44,2],[44,3,44,13],[35,3,35,9],[51,1,51,13],[48,1,48,2],[48,3,48,13],[41,1,41,2],[6,1,6,9],[45,1,45,2],[36,3,36,9],[37,3,37,9],[42,1,42,2],[42,3,42,13]]}
[null,{"$f":"Info!B2","v":"Version 2020"}]
[null,"Förderungswerber",null,null,{"$f":"Daten!D5","v":0}]
[null,"Bauvorhaben",null,null,{"$f":"Daten!D25&\" BA \"&Daten!D27&\", \"&Daten!D26","v":" BA , "}]
[null,"Gemeinde",null,null,{"$f":"Daten!D33","v":0},null,null,null,null,null,null,"Gemeindekennzahl ",{"$f":"Daten!D34","v":0}]
[]
[null,"Deckblatt zum Ansuchen"]
["um Bundes- und Landesförderung"]
["um alleinige Landesförderung"]
[null,"Die Einreichung für eine gemeinsame Bundes- und Landesförderung erfolgt über die KPC Online Einreichplattform www.meinefoerderung.at. Die angeführten Beilagen zum Förderungsansuchen im Deckblatt dienen nur zur Orientierung über die erforderlichen Unterlagen und sind bereits zum Teil in der Einreichplattform integriert.\n"]
[]
[null,"Beilagen zum Förderungsansuchen"]
[null,null,null,null,null,null,null,null,null,"Ausfertigungen"]
[null,null,"Formular\nvon",null,null,null,null,null,null,null,"beigelegt","BBL","A14","KPC"]
["JA",1,"Land","Ansuchenformblatt Landesförderung",null,null,null,null,null,null,null,{"$f":"IF($B$7=\"um alleinige Landesförderung\",\"x\",IF($B$7=\"um Bundes- und Landesförderung\",\"x\",\"\"))","v":""},{"$f":"IF($B$7=\"um alleinige Landesförderung\",\"x\",IF($B$7=\"um Bundes- und Landesförderung\",\"x\",\"\"))","v":""}]
["NEIN",2,"Bund","Ansuchenformblatt Bundesförderung",null,null,null,null,null,null,null,{"$f":"IF($B$7=\"um alleinige Landesförderung\",\"x\",IF($B$7=\"um Bundes- und Landesförderung\",\"x\",\"\"))","v":""},"",{"$f":"IF($B$7=\"um alleinige Landesförderung\",\"\",IF($B$7=\"um Bundes- und Landesförderung\",\"x\",\"\"))","v":""}]
[null,3,"Bund","Techn. Datenerfassungsblatt",null,null,null,null,null,null,null,"","",{"$f":"IF($B$7=\"um alleinige Landesförderung\",\"\",IF($B$7=\"um Bundes- und Landesförderung\",\"x\",\"\"))","v":""}]
[null,4,null,"Technischer Bericht",null,null,null,null,null,null,null,"","",""]
[null,5,null,"Übersichtslageplan *",null,null,null,null,null,null,null,"","",""]
[null,6,null,"Pläne zum Katalog",null,null,null,null,null,null,null,"","",""]
[null,7,"Bund/Land","Katalog *",null,null,null,null,null,null,null,"","",""]
[null,8,"Land","Kosten- und Leistungsrechnung *",null,null,null,null,null,null,null,null,""]
[null,9,"Land","BAB *",null,null,null,null,null,null,null,"","",""]
[null,10,"Bund","Gebührenblatt",null,null,null,null,null,null,null,"","",""]
[null,11,"Land","Nachweis Mindestgebühr",null,null,null,null,null,null,null,"",""]
[null,12,null,"Gebührenordnung *",null,null,null,null,null,null,null,"",""]
[null,13,"Land","Variantenuntersuchung *",null,null,null,null,null,null,null,"","",{"$f":"IF($B$7=\"um alleinige Landesförderung\",\"\",IF($B$7=\"um Bundes- und Landesförderung\",\"x\",\"\"))","v":""}]
[null,14,null,"Nachweis wasserrechtl. Genehmigung",null,null,null,null,null,null,null,"",""]
[null,15,null,"Nachweis baurechtliche Genehmigung",null,null,null,null,null,null,null,"",""]
[null,16,null,"Bestätigung Voraussetzung Sanierung",null,null,null,null,null,null,null,"","",""]
[null,17,null,"Reinvestitionsplan",null,null,null,null,null,null,null,"","",""]
[null,18,null,"Regenwasserbewirtschaftungskonzept",null,null,null,null,null,null,null,"",""]
[null,19,null,"Aktuelle Satzungen *",null,null,null,null,null,null,null,null,"",""]
[null,20,null,"Genehmigungsbescheid Satzungen *",null,null,null,null,null,null,null,null,{"$f":"IF($B$7=\"um alleinige Landesförderung\",\"x\",IF($B$7=\"um Bundes- und Landesförderung\",\"x\",\"\"))","v":""},""]
[]
[null,null,null,"Sonstige Unterlagen *"]
[null,21,null,null,null,null,null,null,null,null,null,null,"x"]
[null,22,null,null,null,null,null,null,null,null,null,null,"x"]
[null,23,null,null,null,null,null,null,null,null,null,null,"x"]
[null,24,null,null,null,null,null,null,null,null,null,null,"x"]
[]
[null,"*  Erläuterungen zu den Beilagen:"]
[null,"Zu 5:",null,"Der Übersichtslageplan soll für die Gesamtanlage den Bestand, den Umfang des beantragten Bauabschnitts sowie die bis zur Gesamtfertigstellung erforderlichen Restmaßnahmen in verschiedenen Farben darstellen. Sofern dies mit dem Lageplan zum Katalog möglich ist, kann die Vorlage eines derartigen Übersichtslageplans entfallen."]
[null,"Zu 7:",null,"Wenn nur um Landesförderung angesucht wird, ist das Formular des Landes zu verwenden. Bei einem Ansuchen um Bundes- und Landesförderung ist das Formular des Bundes zu verwenden."]
[null,"Zu 8:",null,"Die Kosten-Leistungsrechnung ist auf Basis des Berechnungsprogrammes der Abteilung 14 für das letzte abgeschlossene Rechnungsjahr durchzuführen und der Abteilung 14 digital vorzulegen."]
[null,"Zu 9:",null,"Der BAB ist auf Basis des Berechnungsprogrammes der Abteilung 14 durchzuführen."]
[null,"Zu 12:",null,"Die aktuelle Gebührenordnung ist als Ausdruck beizulegen. Aber auch digital gemeinsam mit der KLR zu übermitteln (siehe 8). Dies kann entfallen, wenn die aktuelle Gebührenordnung bereits im Zuge eines anderen Förderungsansuchen übermittelt wurde."]
[null,"Zu 13:",null,"Zum Zeitpunkt der Einreichung des Förderungsansuchens ist davon auszugehen, dass eine Variantenuntersuchung im Sinne des UFG 1993 einvernehmlich mit der BBL bzw. mit der  Abteilung 14 erstellt, positiv beurteilt wurde und bereits aufliegt."]
[null,"Zu 15:",null,"Eine baurechtliche Genehmigung ist beizulegen, sofern die Maßnahme von der Baubehörde und nicht von der Wasserrechtsbehörde bewilligt wird.\n(z.B. bei untergeordneten Regenwasserkanälen)"]
[null,"Zu 19 u. 20:",null,"Zusätzlich bei Verbänden und Genossenschaften anzuschließen, bei Gemeinden nicht erforderlich."]
[]
[null,"Anmerkungen:"]

{"sheet":"11 NW Mindestgeb","index":3,"n_rows":24,"n_cols":13,"rows_kept":24,"cut":false,"hidden":false,"merged":[[2,5,2,14],[3,12,3,14],[13,1,13,4],[13,8,13,10],[13,11,13,14],[11,1,12,4],[11,5,12,5],[11,8,12,10],[11,11,12,14],[11,6,12,7],[14,1,14,4],[14,8,14,10],[14,11,14,14],[13,6,13,7],[14,6,14,7],[15,1,15,4],[15,8,15,10],[15,11,15,14],[16,1,16,4],[16,8,16,10],[16,11,16,14],[15,6,15,7],[16,6,16,7],[17,1,17,4],[17,8,17,10],[17,11,17,14],[18,1,18,4],[18,8,18,10],[18,11,18,14],[17,6,17,7],[18,6,18,7],[23,11,23,14],[22,1,22,10],[22,11,22,14],[19,1,19,4],[19,8,19,10],[19,11,19,14],[20,1,20,4],[20,5,20,14],[21,1,21,10],[21,11,21,14],[19,6,19,7]]}
[null,{"$f":"Info!B2","v":"Version 2020"}]
[null,"Förderungswerber",null,null,null,{"$f":"Daten!D5","v":0}]
[null,"Bauvorhaben",null,null,null,{"$f":"Daten!D25&\" BA \"&Daten!D27&\", \"&Daten!D26","v":" BA , "}]
[null,"Gemeinde",null,null,null,{"$f":"Daten!D33","v":0},null,null,null,null,null,"Gemeindekennzahl ",{"$f":"Daten!D34","v":0}]
[]
[null,"Nachweis Mindestgebühr Musterhaus Steiermark"]
[null,"(alle Beträge ohne Ust.)"]
[]
[null,"Zum Zeitpunkt des Antrages vom",null,null,null,null,{"$f":"Daten!D36","v":"00:00:00"}]
[null,"gültige Gebührenordnung vom"]
[]
[null,"Angaben zum Musterhaus",null,null,null,"Wert","Einheit",null,"Einheitssatz",null,null,"Gebühr"]
[]
[null,"3 Personen",null,null,null,3,"E",null,null,null,null,{"$f":"F14*I14","v":0}]
[null,"Wasserverbrauch von 120 Liter pro Person und Tag",null,null,null,131.5,"m³/a",null,null,null,null,0]
[null,"WC / Bäder",null,null,null,null,"Stk.",null,null,null,null,0]
[null,"Berechnungsfläche",null,null,null,270,"m²",null,null,null,null,0]
[null,"Regenwasserentsorgung",null,null,null,null,null,null,null,null,null,0]
[null,"Grundstücksfläche",null,null,null,600,"m²",null,null,null,null,0]
[null,"Grundgebühr bzw.\nBereitstellungsgebühr",null,null,null,null,null,null,null,null,null,0]
[null,"Anmerkungen zur Herleitung allfälliger Durchschnittssätze für Einheitssätze"]
[null,"Laufende Gebührenbelastung eines Musterhauses pro Jahr",null,null,null,null,null,null,null,null,null,{"$f":"SUM(L14:N20)","v":0}]
[null,"Gebühren eines Musterhauses pro m3",null,null,null,null,null,null,null,null,null,{"$f":"L22/F15","v":0}]
[null,null,null,null,null,null,null,null,null,null,"Mindestgebühr:",{"$f":"IF(Daten!D25=\"WVA\",1.4,IF(Daten!D25=\"ABA\",2.1,\"\"))","v":""}]

{"sheet":" 1 Ansuchen LF","index":4,"n_rows":110,"n_cols":13,"rows_kept":110,"cut":false,"hidden":false,"merged":[[90,2,90,13],[91,2,91,13],[65,2,65,13],[66,2,66,13],[67,2,67,13],[27,1,27,13],[43,2,43,13],[49,4,49,5],[50,4,50,5],[51,4,51,5],[58,6,58,8],[38,1,38,12],[71,2,71,13],[72,2,72,13],[73,2,73,13],[34,11,34,12],[68,2,68,13],[69,2,69,13],[70,2,70,13],[61,6,61,8],[59,6,59,8],[60,6,60,8],[48,6,48,8],[49,6,49,8],[50,6,50,8],[51,6,51,8],[52,6,52,8],[48,4,48,5],[99,2,99,5],[100,2,100,5],[100,9,100,12],[84,4,84,10],[75,2,75,13],[83,4,83,10],[76,2,76,13],[77,2,77,13],[78,1,78,13],[81,1,81,13],[79,1,79,13],[80,1,80,13],[92,2,92,13],[87,2,87,13],[88,2,88,13],[89,2,89,13],[109,2,109,4],[108,9,108,12],[109,9,109,12],[102,2,102,4],[103,2,103,4],[108,2,108,4],[6,1,6,11],[3,12,3,14],[3,4,3,8],[17,3,17,6],[18,3,18,6],[14,6,14,9],[23,3,23,6],[109,6,109,7],[19,3,19,6],[25,9,25,12],[22,3,22,6],[102,6,102,7],[28,11,28,12],[24,3,24,6],[25,3,25,6],[56,6,56,8],[103,6,103,7],[99,9,99,12],[34,4,34,5],[108,6,108,7],[57,6,57,8],[74,2,74,13]]}
[null,{"$f":"Info!B2","v":"Version 2020"}]
[null,"Förderungswerber",null,null,{"$f":"Daten!D5","v":0}]
[null,"Bauvorhaben",null,null,{"$f":"Daten!D25&\" BA \"&Daten!D27&\", \"&Daten!D26","v":" BA , "}]
[null,"Gemeinde",null,null,{"$f":"Daten!D33","v":0},null,null,null,null,null,null,"Gemeindekennzahl ",{"$f":"Daten!D34","v":0}]
[]
[null,"Ansuchen um Landesförderung"]
[null,{"$f":"IF(Daten!D25=\"WVA\",\"für kommunale Wasserversorgungsanlagen\",IF(Daten!D25=\"ABA\",\"für kommunale Abwasserbeseitigungsanlagen\",\"#anlagenart in blatt 'daten' auswählen!\"))","v":"#anlagenart in blatt 'daten' auswählen!"}]
[]
[null,"An das"]
[null,"Amt der Steiermärkischen Landesregierung"]
[null,"Abteilung 14"]
[null,"Wartingergasse 43"]
[null,"8010 Graz"]
[]
["Liezen"," im Wege der Baubezirksleitung"]
["Obersteiermark Ost"]
["Obersteiermark West","Anschrift des Förderungswerbers"]
["Oststeiermark","PLZ, Ort",null,{"$f":"Daten!D8&\" \"&Daten!D7","v":" "}]
["Steirischer Zentralraum","Straße",null,{"$f":"Daten!D9","v":0}]
["Südoststeiermark","Telefon",null,{"$f":"Daten!D10","v":0},null,null,null,null,"E-Mail",{"$f":"Daten!D12","v":0}]
["Südweststeiermark"]
[null,"Projektant"]
[null,"Name",null,{"$f":"Daten!D16","v":0}]
[null,"PLZ, Ort",null,{"$f":"Daten!D18&\" \"&Daten!D17","v":" "}]
[null,"Straße",null,{"$f":"Daten!D19","v":0}]
[null,"Telefon",null,{"$f":"Daten!D20","v":0},null,null,null,null,"E-Mail",{"$f":"Daten!D21","v":0}]
[]
[null,"Bei mehreren Förderungswerbern bzw.Projektanten ist die Anschrift der für die Abwicklung der Förderung bevollmächtigten Ansprechperson anzuführen."]
[null,"Daten zur Kosten- und Leistungsrechnung  -  digitale Vorlage an die A14 am:"]
[null,"Kostenunterdeckungsschwellenwert:",null,null,null,null,null,"%",null,null,"Rechnungsjahr: "]
[]
[null,"Gebühr lt. Musterhaus (ohne Ust.)",null,null,null,null,{"$f":"'11 NW Mindestgeb'!L23","v":0},"€/m3"]
[]
[null,"Daten zum Projekt"]
[null,"Baubeginn geplant",null,null,{"$f":"Daten!D28","v":"00:00:00"},null,null,null,null,null,"Funktionsfähigkeit geplant",{"$f":"Daten!D29","v":"00:00:00"}]
[]
[null,"Förderung"]
[null,"beantragter Fördersatz lt. Liste A14"]
[null,"(Bei mehreren betroffenen Gemeinden ist der Fördersatz anhand des Formulares \"Mischfördersatz\" zu berechnen.)"]
[]
["JA","Antrag auf Steigerungsbeitrag für Maßnahmen im besonderen Landesinteresse gemäß den"]
["NEIN","Förderungsrichtlinien Siedlungswasserwirtschaft Pkt. 6a.:",null,null,null,null,null,null,null,"NEIN"]
[null,null,"bei JA, Begründung für einen Steigerungsbeitrag:"]
[]
[]
[null,"Förderbare Investitionskosten des zur Förderung beantragten Bauabschnittes"]
[null,"(alle Beträge ohne Ust.)"]
[]
[null,null,"Im Jahre"]
[null,null,"Im Jahre",null,{"$f":"IF(E49>0,E49+1,\"\")","v":""}]
[null,null,"Im Jahre",null,{"$f":"IF(E49>0,E49+2,\"\")","v":""}]
[null,null,"Im Jahre",null,{"$f":"IF(E49>0,E49+3,\"\")","v":""},null,{"$f":"G53-G51-G50-G49","v":0}]
[null,null,"Förderbare Investitionskosten",null,null,null,{"$f":"Daten!D30","v":0}]
[]
[null,"Finanzierungsplan (alle Beträge ohne Ust.)"]
[]
[null,null,"Anschlussgebühren",null,null,null,0]
[null,null,"Eigenmittel",null,null,null,0]
[null,null,"Landesförderung beantragt",null,null,null,{"$f":"G38*G62","v":0}]
[null,null,"Bundesförderung beantragt",null,null,null,0]
[null,null,"Sonstige Mittel",null,null,null,{"$f":"G62-G57-G58-G59-G60","v":0}]
[null,null,"Förderbare Investitionskosten",null,null,null,{"$f":"Daten!D30","v":0}]
[]
[]
[null,"Vorgaben für die Landesförderung"]
[null,"l","Als Grundlage für die Landesförderung von kommunalen Bauvorhaben gelten die „Förderungsrichtlinien Siedlungswasserwirtschaft“ i.d.g.F."]
[null,"l","Eine Förderung kann nur gewährt werden, wenn die ökologische Verträglichkeit sowie die volks- und betriebswirtschaftliche Zweckmäßigkeit der Maßnahme belegt sind (Varianten-untersuchung)."]
[null,"l","Die Förderungsabwicklung erfolgt nach den Bestimmungen der „Landesdurchführungs-bestimmungen für die Siedlungswasserwirtschaft“ i.d.g.F.(LSW)."]
[null,"l","Der Förderungswerber verpflichtet sich, die Ausführung der Maßnahme von dafür befugten Personen durchführen zu lassen."]
[null,"l","Der Förderungswerber verpflichtet sich zur Einhaltung aller gesetzlichen Bestimmungen (insbesondere Wasserrecht, Baurecht, Gewerbeordnung, ArbeitnehmerInnenschutz, Vergabe-recht und Wettbewerbsrecht unter Berücksichtigung der Allgemeinen Vertragsbedingungen zum Förderungsvertrag des Bundes)."]
[null,"l","Der Tag des Baubeginns sowie der Funktionsfähigkeit sind der Abteilung 14 im Rahmen der Vorlage der Rechnungsnachweise schriftlich bekannt zu geben. Die Meldung des Baubeginns mittels eines Landesrechnungsnachweises sollte sofort nach Baubeginn erfolgen, wobei die Höhe der verbauten Kosten nicht mehr von Bedeutung ist."]
[null,"l","Analog zur Bundesförderung ist für die Dauer der Baudurchführung sowie nach Fertigstellung der Maßnahme in geeigneter Form (Hinweistafel, Erinnerungstafel) auf die Förderung durch das Land Steiermark hinzuweisen (für Bauvorhaben größer € 120.000,-- ohne USt.)."]
[null,"l","Der Förderungswerber verpflichtet sich, die sachliche und rechnerische Prüfung auf Über-einstimmung mit den Voraussetzungen einer Förderung durch schriftliche Verträge oder sonstige Vereinbarungen an befugte Personen sicherzustellen. Dies gilt insbesondere für die Erstellung der Abrechnungs- und Kollaudierungsunterlagen."]
[null,"l","Der Förderungswerber verpflichtet sich, die Endabrechnungs- und Kollaudierungsunterlagen zum ehestmöglichen Termin, spätestens jedoch zwei Jahre nach der gemeldeten bzw. ge-planten Funktionsfähigkeit der Förderungsstelle des Landes (Abteilung 14, Wartingergasse 43, 8010 Graz) vorzulegen."]
[null,"l","Das endgültige Ausmaß der Landesförderung wird anlässlich der Endüberprüfung (Kollaudierung) festgelegt."]
[null,"l","Der Förderungswerber verpflichtet sich, eine gewährte Förderung unverzüglich ganz oder teilweise zurückzuzahlen, wenn die Verpflichtungen oder die Bedingungen zur Erreichung des Förderungszweckes nicht eingehalten werden."]
[null,"l","Das Land Steiermark behält sich gemäß Art. 50 Abs. 1 Z. 6 und Z. 8 des Landes-Verfassungs-gesetzes (L-VG), LGBl. Nr. 77/2010 eine Gebarungskontrolle durch den Landesrechnungshof vor. Die Überprüfung hat sich auf die ziffernmäßige Richtigkeit, die Übereinstimmung mit den bestehenden Vorschriften, ferner auf die Sparsamkeit, Wirtschaftlichkeit und Zweckmäßigkeit zu erstrecken. Der Förderungswerber nimmt somit zustimmend zur Kenntnis, dass sich das Land Steiermark mit der Gewährung von Landesförderungsmitteln eine Gebarungskontrolle im Sinne des Art. 50 Abs. 1 Z. 6 und Z. 8 L-VG vorbehält."]
[null,"l","Die Abteilung 14 behält sich vor, weitere Unterlagen und Stellungnahmen einzufordern."]
[null,"Der Förderungswerber ersucht um Gewährung einer Landesförderung gemäß den Förderungs-richtlinien Siedlungswasserwirtschaft, die für alle vollständigen Förderungsanträge mit Eingangsdatum in der Abteilung 14 ab dem 1.7.2016 zur Anwendung gelangt. Es wird zur Kenntnis genommen, dass vor Auszahlung von Landesbeiträgen ein Förderungsvertrag mit dem Land Steiermark abzuschließen ist. Der Förderungswerber erklärt, dass die Finanzierung des vorgelegten Projektes gegebenenfalls auch ohne Bereitstellung einer Landesförderung sichergestellt ist."]
[null,"Die Überweisung von Landesförderungsmitteln erfolgt entsprechend dem abgeschlossenen Förderungsvertrag mit dem Land Steiermark nach Meldung des Baubeginns und nach Maßgabe der im jeweiligen Landesvoranschlag vorhandenen Mittel. Rechnungsnachweise für die Bundes-förderung gelten gleichzeitig als Rechnungsnachweise für die Landesförderung"]
[]
[null,"Der Förderungswerber und der Projektant verpflichten sich zur Einhaltung aller Vorgaben für die Landesförderung und erklären ausdrücklich, dass alle Angaben im Förderungsansuchen sowie in den beigelegten Unterlagen sachlich und rechnerisch richtig sind und den Voraussetzungen für die Förderung entsprechen.\n"]
[null,"Die Überweisung von Landesförderungsmitteln wird erbeten auf das Konto"]
[null,"IBAN"]
[null,"Kontowortlaut"]
[]
[null,"Datenschutzrechtliche Bestimmungen"]
[null,"1.","Die Förderungswerberin / Der Förderungswerber nimmt zur Kenntnis, dass der Förderungsgeber ermächtigt ist, alle im Förderungsantrag enthaltenen, die Förderungswerberinnen / Förderungswerber und Förderungsnehmerinnen / Förderungsnehmer betreffenden personenbezogenen Daten gemäß Art. 6 Abs. 1 lit. b Datenschutz-Grundverordnung für Zwecke der Anbahnung und des Abschlusses des Förderungsvertrages automationsunterstützt zu verarbeiten. "]
[null,"2.","Die gemäß Z 1 verarbeiteten Daten werden als Grundlage für weitere Förderungsansuchen auf die Dauer der bestehenden Landesförderung für Maßnahmen in der Siedlungswasserwirtschaft gespeichert. "]
[null,"3.","Die Förderungswerberin/Der Förderungswerbers nimmt zur Kenntnis, dass auf der Datenschutz-Informationsseite des Förderungsgebers (https://datenschutz.stmk.gv.at) alle relevanten Informationen insbesondere zu folgenden sie/ihn betreffenden Punkten veröffentlicht sind: "]
[null,"-","zu den ihr/ihm zustehenden Rechten auf Auskunft, Berichtigung, Löschung, Einschränkung der Verarbeitung, Widerruf und Widerspruch sowie auf Datenübertragbarkeit; "]
[null,"-","zum dem ihr/ihm zustehenden Beschwerderecht bei der Österreichischen Datenschutzbehörde; "]
[null,"-","zum Verantwortlichen der Verarbeitung und zum Datenschutzbeauftragten. "]
[]
[null,"Für den Förderungswerber (rechtsgültige Fertigung)"]
[]
[]
[]
[]
[null,null,"…………………………………………………"]
[null,null,"Name, Funktion"]
[]
[null,null,{"$f":"Daten!D7","v":0},null,null,null,{"$f":"Daten!D36","v":"00:00:00"}]
[null,null,"Ort",null,null,null,"Datum"]
[]
[null,"Für den Projektanten"]
[]
[]
[null,null,{"$f":"Daten!D17","v":0},null,null,null,{"$f":"Daten!D36","v":"00:00:00"},null,null,"…………………………………………………"]
[null,null,"Ort",null,null,null,"Datum",null,null,"rechtsgültige Fertigung"]

{"sheet":"7 Katalog Kanal","index":5,"n_rows":34,"n_cols":16,"rows_kept":34,"cut":false,"hidden":false,"merged":[[27,7,27,8],[27,13,27,14],[28,7,28,8],[28,13,28,14],[29,11,29,12],[3,2,5,2],[3,3,5,3],[26,13,26,14],[4,12,5,12],[4,6,5,6],[26,4,26,5],[26,7,26,8]]}
[null,{"$f":"Info!B2","v":"Version 2020"}]
[null,"Katalog Abwasserableitungsanlagen für alleinige Landesförderung"]
[]
[null,"A1 Abwasserableitungsanlagen","E, S od. A 1)","Kategorie 2)","beantragt",null,null,null,null,null,"ausgeführt"]
[null,null,null,null,"Punkt",null,"DN\nAnzahl","Länge","spez. \nKosten","Kosten \nexkl. UST","Punkt",null,"DN\nAnzahl","Länge","spez. \nKosten","Kosten \nexkl. UST"]
[null,"Bezeichnung",null,null,"von","bis",null,"[m]","[EUR]","[EUR]","von","bis",null,"[m]","[EUR]","[EUR]"]
[]
[null,null,null,null,null,null,null,null,null,{"$f":"ROUND(IF($D8>4,G8*I8,H8*I8),0)","v":0},null,null,null,null,null,{"$f":"ROUND(IF($D8>4,M8*O8,N8*O8),0)","v":0}]
[null,null,null,null,null,null,null,null,null,0,null,null,null,null,null,0]
[null,null,null,null,null,null,null,null,null,0,null,null,null,null,null,0]
[null,null,null,null,null,null,null,null,null,{"$f":"ROUND(IF($D11>4,G11*I11,H11*I11),0)","v":0},null,null,null,null,null,{"$f":"ROUND(IF($D11>4,M11*O11,N11*O11),0)","v":0}]
[null,null,null,null,null,null,null,null,null,{"$f":"ROUND(IF($D12>4,G12*I12,H12*I12),0)","v":0},null,null,null,null,null,{"$f":"ROUND(IF($D12>4,M12*O12,N12*O12),0)","v":0}]
[null,null,null,null,null,null,null,null,null,{"$f":"ROUND(IF($D13>4,G13*I13,H13*I13),0)","v":0},null,null,null,null,null,{"$f":"ROUND(IF($D13>4,M13*O13,N13*O13),0)","v":0}]
[null,null,null,null,null,null,null,null,null,{"$f":"ROUND(IF($D14>4,G14*I14,H14*I14),0)","v":0},null,null,null,null,null,{"$f":"ROUND(IF($D14>4,M14*O14,N14*O14),0)","v":0}]
[null,null,null,null,null,null,null,null,null,{"$f":"ROUND(IF($D15>4,G15*I15,H15*I15),0)","v":0},null,null,null,null,null,{"$f":"ROUND(IF($D15>4,M15*O15,N15*O15),0)","v":0}]
[null,null,null,null,null,null,null,null,null,{"$f":"ROUND(IF($D16>4,G16*I16,H16*I16),0)","v":0},null,null,null,null,null,{"$f":"ROUND(IF($D16>4,M16*O16,N16*O16),0)","v":0}]
[null,null,null,null,null,null,null,null,null,0,null,null,null,null,null,0]
[null,null,null,null,null,null,null,null,null,{"$f":"ROUND(IF($D18>4,G18*I18,H18*I18),0)","v":0},null,null,null,null,null,{"$f":"ROUND(IF($D18>4,M18*O18,N18*O18),0)","v":0}]
[null,null,null,null,null,null,null,null,null,{"$f":"ROUND(IF($D19>4,G19*I19,H19*I19),0)","v":0},null,null,null,null,null,{"$f":"ROUND(IF($D19>4,M19*O19,N19*O19),0)","v":0}]
[null,null,null,null,null,null,null,null,null,0,null,null,null,null,null,0]
[]
[null,null,null,null,null,null,null,null,"Summe förderfähige Investitionskosten Abwasserableitungsanlagen (A1):",{"$f":"SUM(J6:J21)","v":0},null,null,null,null,null,{"$f":"SUM(P6:P21)","v":0}]
[null,"A3 Nebenkosten"]
[null,null,null,null,null,null,null,null,"Planung, Bauaufsicht:"]
[null,null,null,null,null,null,null,null,"Unvorhergesehenes und Rundung  (max. 5 % der Gesamtkosten):"]
[null,null,null,null,null,null,null,null,"Summe förderfähige Kosten (A3):",{"$f":"ROUND(SUM(J24:J25),0)","v":0},null,null,null,null,null,{"$f":"ROUND(SUM(P24:P24),0)","v":0}]
[null,"A4 Leitungsinformationssystem",null,null,null,null,null,"Länge [m]",null,null,null,null,null,"Länge [m]"]
[null,"Leitungsinformationssystem - Kanal"]
[null,"Leitungsinformationssystem - Wasser",null,null,null,null,null,null,0,null,null,null,null,null,0]
[null,null,null,null,null,null,null,null,"Summe förderfähige Kosten (A4):",{"$f":"SUM(J28:J29)","v":0},null,null,null,null,null,{"$f":"SUM(P28:P29)","v":0}]
[null,"A5 Summe förderfähige Kosten bei Abwasserableitungsanlagen (A1+A3+A4)",null,null,null,null,null,null,null,{"$f":"J22+J26+J30","v":0},null,null,null,null,"Endabrechnungskosten:",{"$f":"P22+P26+P30","v":0}]
[]
[null,"1) E...Errichtung, S...Sanierung, A… Anpassung"]
[null,"2) 1...ff. Hausanschlussleitung, 2...Schmutzwasserkanal, 3...Mischwasserkanal, 4...Regenwasserkanal, 5...Pumpwerke, 6...Sonstiges"]

{"sheet":"7 Katalog ARA","index":6,"n_rows":31,"n_cols":9,"rows_kept":31,"cut":false,"hidden":false,"merged":[]}
[null,{"$f":"Info!B2","v":"Version 2020"}]
[null,"Katalog Abwasserreinigungsanlagen für alleinige Landesförderung"]
[]
[null,"A2 Abwasserreinigungsanlagen","beantragt",null,null,null,null,null,"ausgeführt"]
[null,null,"Kosten \nexkl. UST",null,null,null,null,null,"Kosten \nexkl. UST"]
[null,"Bezeichnung","[EUR]",null,null,null,null,null,"[EUR]"]
[]
[]
[]
[]
[]
[]
[]
[]
[]
[]
[]
[]
[]
[]
[]
[]
[]
[]
[]
[null,"Summe förderfähige Investitionskosten Abwasserreinigungsanlagen (A2):",{"$f":"SUM(C7:C25)","v":0},null,null,null,null,null,{"$f":"SUM(I7:I25)","v":0}]
[null,"A3 Nebenkosten"]
[null,"Planung, Bauaufsicht:"]
[null,"Unvorhergesehenes und Rundung  (max. 5 % der Gesamtkosten):"]
[null,"Summe förderfähige Kosten (A3):",{"$f":"ROUND(SUM(C28:C29),0)","v":0},null,null,null,null,null,{"$f":"ROUND(SUM(I28:I28),0)","v":0}]
[null,"A4 Summe förderfähige Kosten bei Abwasserreinigungsanlagen (A2+A3)",{"$f":"C26+C30","v":0},null,null,null,null,"Endabrechnungskosten:",{"$f":"I26+I30","v":0}]

{"sheet":"7 Katalog WVA","index":7,"n_rows":35,"n_cols":16,"rows_kept":35,"cut":false,"hidden":false,"merged":[[3,2,5,2],[3,3,5,3],[4,6,5,6],[4,12,5,12],[27,4,27,5],[27,7,27,8],[30,11,30,12],[27,13,27,14],[28,7,28,8],[28,13,28,14],[29,7,29,8],[29,13,29,14]]}
[null,{"$f":"Info!B2","v":"Version 2020"}]
[null,"Katalog Wasserversorgungsanlagen für alleinige Landesförderung"]
[]
[null,"W1 Anlagenteile","E, S od. A 1)","Kategorie 2)","beantragt",null,null,null,null,null,"ausgeführt"]
[null,null,null,null,"Punkt",null,"DN\nAnzahl","Länge","spez. \nKosten","Kosten \nexkl. UST","Punkt",null,"DN\nAnzahl","Länge","spez. \nKosten","Kosten \nexkl. UST"]
[null,"Bezeichnung",null,null,"von","bis",null,"[m]","[EUR]","[EUR]","von","bis",null,"[m]","[EUR]","[EUR]"]
[]
[null,null,null,null,null,null,null,null,null,{"$f":"ROUND(IF($D8>4,G8*I8,H8*I8),0)","v":0},null,null,null,null,null,{"$f":"ROUND(IF($D8>4,M8*O8,N8*O8),0)","v":0}]
[null,null,null,null,null,null,null,null,null,{"$f":"ROUND(IF($D9>4,G9*I9,H9*I9),0)","v":0},null,null,null,null,null,{"$f":"ROUND(IF($D9>4,M9*O9,N9*O9),0)","v":0}]
[null,null,null,null,null,null,null,null,null,{"$f":"ROUND(IF($D10>4,G10*I10,H10*I10),0)","v":0},null,null,null,null,null,{"$f":"ROUND(IF($D10>4,M10*O10,N10*O10),0)","v":0}]
[null,null,null,null,null,null,null,null,null,{"$f":"ROUND(IF($D11>4,G11*I11,H11*I11),0)","v":0},null,null,null,null,null,{"$f":"ROUND(IF($D11>4,M11*O11,N11*O11),0)","v":0}]
[null,null,null,null,null,null,null,null,null,{"$f":"ROUND(IF($D12>4,G12*I12,H12*I12),0)","v":0},null,null,null,null,null,{"$f":"ROUND(IF($D12>4,M12*O12,N12*O12),0)","v":0}]
[null,null,null,null,null,null,null,null,null,{"$f":"ROUND(IF($D13>4,G13*I13,H13*I13),0)","v":0},null,null,null,null,null,{"$f":"ROUND(IF($D13>4,M13*O13,N13*O13),0)","v":0}]
[null,null,null,null,null,null,null,null,null,{"$f":"ROUND(IF($D14>4,G14*I14,H14*I14),0)","v":0},null,null,null,null,null,{"$f":"ROUND(IF($D14>4,M14*O14,N14*O14),0)","v":0}]
[null,null,null,null,null,null,null,null,null,{"$f":"ROUND(IF($D15>4,G15*I15,H15*I15),0)","v":0},null,null,null,null,null,{"$f":"ROUND(IF($D15>4,M15*O15,N15*O15),0)","v":0}]
[null,null,null,null,null,null,null,null,null,{"$f":"ROUND(IF($D16>4,G16*I16,H16*I16),0)","v":0},null,null,null,null,null,{"$f":"ROUND(IF($D16>4,M16*O16,N16*O16),0)","v":0}]
[null,null,null,null,null,null,null,null,null,0,null,null,null,null,null,0]
[null,null,null,null,null,null,null,null,null,0,null,null,null,null,null,0]
[null,null,null,null,null,null,null,null,null,0,null,null,null,null,null,0]
[null,null,null,null,null,null,null,null,null,0,null,null,null,null,null,0]
[null,null,null,null,null,null,null,null,null,0,null,null,null,null,null,0]
[]
[null,null,null,null,null,null,null,null,"Summe förderfähige Investitionskosten Anlagenteile (W1):",{"$f":"SUM(J7:J22)","v":0},null,null,null,null,null,{"$f":"SUM(P7:P22)","v":0}]
[null,"W2 Nebenkosten"]
[null,null,null,null,null,null,null,null,"Planung, Bauaufsicht:"]
[null,null,null,null,null,null,null,null,"Unvorhergesehenes und Rundung  (max. 5 % der Gesamtkosten):"]
[null,null,null,null,null,null,null,null,"Summe förderfähige Kosten (W2):",{"$f":"ROUND(SUM(J25:J26),0)","v":0},null,null,null,null,null,{"$f":"ROUND(SUM(P25:P25),0)","v":0}]
[null,"W3 Leitungsinformationssystem",null,null,null,null,null,"Länge [m]",null,null,null,null,null,"Länge [m]"]
[null,"Leitungsinformationssystem - Kanal"]
[null,"Leitungsinformationssystem - Wasser",null,null,null,null,null,null,0,null,null,null,null,null,0]
[null,null,null,null,null,null,null,null,"Summe förderfähige Kosten (W3):",{"$f":"SUM(J29:J30)","v":0},null,null,null,null,null,{"$f":"SUM(P29:P30)","v":0}]
[null,"W4 Summe förderfähige Kosten bei Wasserversorgungsanlagen (W1+W2+W3)",null,null,null,null,null,null,null,{"$f":"J23+J27+J31","v":0},null,null,null,null,"Endabrechnungskosten:",{"$f":"P23+P27+P31","v":0}]
[]
[null,"1) E...Errichtung, S...Sanierung, A...Anpassung"]
[null,"2) 1...ff. Hausanschlussleitung, 2...Wasserleitung, 3...Quelle, 4...Brunnen, 5...Aufbereitung, 6...Speicher 1, 7...Speicher 2 , 8...Speicher 3, 9...Sonstiges"]

{"sheet":"ReNW","index":8,"n_rows":42,"n_cols":13,"rows_kept":42,"cut":false,"hidden":false,"merged":[[38,9,38,12],[22,2,22,5],[16,1,16,13],[32,2,32,4],[32,6,32,7],[32,9,32,12],[41,1,45,13],[15,4,15,6],[24,1,24,13],[3,4,3,8],[3,12,3,14],[38,2,38,4],[38,6,38,7],[31,9,31,12],[39,2,39,4],[39,6,39,7],[39,9,39,12],[31,2,31,4],[31,6,31,7],[21,6,21,8],[22,6,22,8],[21,2,21,5]]}
[null,{"$f":"Info!B2","v":"Version 2020"}]
[null,"Förderungswerber",null,null,{"$f":"Daten!D5","v":0}]
[null,"Bauvorhaben",null,null,{"$f":"Daten!D25&\" BA \"&Daten!D27&\", \"&Daten!D26","v":" BA , "}]
[null,"Gemeinde",null,null,{"$f":"Daten!D33","v":0},null,null,null,null,null,null,"Gemeindekennzahl ",{"$f":"Daten!D34","v":0}]
[]
[null,"Rechnungsnachweis für die  Landesförderung"]
[]
[null,"An das"]
[null,"Amt der Steiermärkischen Landesregierung"]
[null,"Abteilung 14"]
[null,"Wartingergasse 43"]
[null,"8010 Graz"]
[]
[]
[null,"Die in der angeschlossenen Rechnungszusammenstellung angegebenen Rechnungsbeträge im"]
[null,"Gesamtausmaß von ",null,null,null,null,null,"(ohne Ust.) beziehen sich ausschließlich auf"]
[null,"förderbare Leistungen, die bereits erbracht und in Rechnung gestellt wurden."]
[]
[null,"Das sind ",null,{"$f":"E16/Daten!D30","v":{"$error":"#DIV/0!"}}," der vertraglich vereinbarten Investitionskosten."]
[]
[]
[null,null,"Datum des Baubeginns:"]
[null,null,"Datum der Funktionsfähigkeit:"]
[]
[null,"Die sachliche und rechnerische Richtigkeit der Rechnungen und der Rechnungszusammenstellung sowie das Datum des Baubeginns bzw. der Funktionsfähigkeit wurden geprüft, für richtig befunden und werden hiemit bestätigt."]
[null,"Beilagen:",null,"Rechnungszusammenstellung"]
[null,null,null,"Projekts- und Kostenverfolgung"]
[]
[null,"Für den Förderungswerber"]
[]
[]
[null,null,{"$f":"Daten!D7","v":0},null,null,null,null,null,null,"…………………………………………………"]
[null,null,"Ort",null,null,null,"Datum",null,null,"Rechtsverbindliche Fertigung"]
[]
[]
[null,"Für den Projektanten"]
[]
[]
[null,null,{"$f":"Daten!D17","v":0},null,null,null,null,null,null,"…………………………………………………"]
[null,null,"Ort",null,null,null,"Datum",null,null,"Rechtsverbindliche Fertigung"]
[]
[null,"Anmerkung:\nRechnungsnachweise für Finanzierungszuschüsse bzw. für Investitionszuschüsse an die Förderstelle des Bundes gelten auch als Rechnungsnachweise für die Landesförderung. Eine Projekts- und Kostenverfolgung ist auch bei einem Rechnungsnachweis für eine Bundesförderung vorzulegen.\n"]

{"sheet":"ReZu","index":9,"n_rows":29,"n_cols":18,"rows_kept":29,"cut":false,"hidden":false,"merged":[[26,2,26,3],[26,4,26,7],[26,8,26,9],[26,10,26,16],[26,17,26,19],[27,2,27,3],[27,4,27,7],[27,8,27,9],[27,10,27,16],[27,17,27,19],[24,2,24,3],[24,4,24,7],[24,8,24,9],[24,10,24,16],[24,17,24,19],[25,2,25,3],[25,4,25,7],[25,8,25,9],[25,10,25,16],[25,17,25,19],[22,2,22,3],[22,4,22,7],[22,8,22,9],[22,10,22,16],[22,17,22,19],[23,2,23,3],[23,4,23,7],[23,8,23,9],[23,10,23,16],[23,17,23,19],[20,2,20,3],[20,4,20,7],[20,8,20,9],[20,10,20,16],[20,17,20,19],[21,2,21,3],[21,4,21,7],[21,8,21,9],[21,10,21,16],[21,17,21,19],[18,2,18,3],[18,4,18,7],[18,8,18,9],[18,10,18,16],[18,17,18,19],[19,2,19,3],[19,4,19,7],[19,8,19,9],[19,10,19,16],[19,17,19,19],[16,2,16,3],[16,4,16,7],[16,8,16,9],[16,10,16,16],[16,17,16,19],[17,2,17,3],[17,4,17,7],[17,8,17,9],[17,10,17,16],[17,17,17,19],[15,2,15,3],[15,4,15,7],[15,8,15,9],[15,10,15,16],[15,17,15,19],[13,2,13,3],[13,4,13,7],[13,8,13,9],[13,10,13,16],[13,17,13,19],[14,2,14,3],[14,4,14,7],[14,8,14,9],[14,10,14,16],[14,17,14,19],[7,10,7,16],[11,2,11,3],[11,4,11,7],[11,8,11,9],[11,10,11,16],[11,17,11,19],[12,2,12,3],[12,4,12,7],[12,8,12,9],[12,10,12,16],[12,17,12,19],[28,17,28,19],[8,2,8,3],[8,4,8,7],[8,8,8,9],[8,10,8,16],[8,17,8,19],[9,2,9,3],[9,4,9,7],[4,6,4,7],[7,2,7,3],[7,17,7,19],[7,8,7,9],[6,17,6,19],[6,12,6,15],[5,6,5,7],[9,8,9,9],[9,10,9,16],[9,17,9,19],[10,2,10,3],[10,4,10,7],[10,8,10,9],[10,10,10,16],[10,17,10,19],[7,4,7,7]]}
[null,{"$f":"Info!B2","v":"Version 2020"}]
[null,"Bauvorhaben",null,null,{"$f":"Daten!D25&\" BA \"&Daten!D27&\", \"&Daten!D26","v":" BA , "}]
[]
[null,"Rechnungszusammenstellung - Land"]
[null,null,null,null,null,"Beilage zum Rechnungsnachweis vom:",{"$f":"ReNW!G32","v":"00:00:00"}]
[null,null,null,null,null,"Blatt Nr.:"]
[null,null,null,null,null,null,null,null,null,null,null,null,"Übertrag von Blatt Nr.:"]
[null,"Pos.","Anlagenteil",null,"Rechnungsleger",null,null,null,"Rechnungs-\ndatum",null,"Art der Leistung bzw. Lieferung",null,null,null,null,null,null,"Rechnungsbetrag\nin Euro"]
[]
[]
[]
[]
[]
[]
[]
[]
[]
[]
[]
[]
[]
[]
[]
[]
[]
[]
[]
[]
[null,null,null,null,null,null,null,null,null,null,null,null,null,null,null,null,"Summe:",{"$f":"SUM(R7:T28)","v":0}]

{"sheet":"KoVerf","index":10,"n_rows":33,"n_cols":14,"rows_kept":33,"cut":false,"hidden":false,"merged":[[31,10,31,14],[32,10,32,14],[22,2,22,4],[22,5,22,8],[22,9,22,10],[22,11,22,12],[22,13,22,14],[23,2,23,4],[23,9,23,10],[23,11,23,12],[23,13,23,14],[31,2,31,4],[31,6,31,7],[32,2,32,4],[32,6,32,7],[20,9,20,10],[20,11,20,12],[20,13,20,14],[26,2,26,14],[29,2,29,14],[21,9,21,10],[21,11,21,12],[21,13,21,14],[21,5,21,8],[23,5,23,8],[21,2,21,4],[3,4,3,9],[3,13,3,14],[8,2,8,5],[9,2,9,5],[10,2,10,5],[8,6,8,7],[9,6,9,7],[10,6,10,7],[17,13,17,14],[16,13,16,14],[16,11,16,12],[16,9,16,10],[20,2,20,4],[18,2,18,4],[18,5,18,8],[20,5,20,8],[16,5,16,8],[16,2,16,4],[17,11,17,12],[17,9,17,10],[17,5,17,8],[17,2,17,4],[18,9,18,10],[18,11,18,12],[18,13,18,14],[19,2,19,4],[19,5,19,8],[19,9,19,10],[19,11,19,12],[19,13,19,14]]}
[null,{"$f":"Info!B2","v":"Version 2020"}]
[null,"Förderungswerber",null,null,{"$f":"Daten!D5","v":0}]
[null,"Bauvorhaben",null,null,{"$f":"Daten!D25&\" BA \"&Daten!D27&\", \"&Daten!D26","v":" BA , "}]
[null,"Gemeinde",null,null,{"$f":"Daten!D33","v":0},null,null,null,null,null,null,null,"Gemeindekennzahl ",{"$f":"Daten!D34","v":0}]
[]
[null,"Projekts- und Kostenverfolgung"]
[]
[null,"Grundlagen"]
[null,null,"Antragsnummer (Bund)"]
[null,null,"Förderungsvertrag vom"]
[null,null,"Geltender Katalog vom"]
[]
[null,"Gegenüberstellung: geltender Katalog zu ausgeführtem Leistungsumfang"]
[null,null,"siehe beigelegten Katalog (Bundes- oder Landesformular)"]
[]
[null,"Gegenüberstellung: Angebotssummen zu Abrechnungssummen"]
[null,null,"Firma",null,null,"Art der Leistung",null,null,null,"Angebots-\nsumme",null,"Abrechn.summe\n(lt. ReNW)",null,"Voraussichtliche \nAbrechn.summe"]
[]
[]
[]
[]
[]
[]
[]
[]
[null,"Anmerkungen:"]
[]
[]
[null,"Erklärung des Verfassers:"]
[null,null,"Der Verfasser erklärt rechtsverbindlich, dass bei der Erstellung der Projekts- und Kostenverfolgung die für den Förderungsnehmer geltenden Richtlinien und Vorgaben hinsichtlich der Förderung (insbesondere Förderungsrichtlinien, Vergabebestimmungen...) eingehalten wurden.\nDie sachliche und rechnerische Richtigkeit wird bestätigt.\n"]
[]
[null,null,{"$f":"Daten!D17","v":0},null,null,null,null,null,null,null,"…………………………………………………"]
[null,null,"Ort",null,null,null,"Datum",null,null,null,"Rechtsverbindliche Fertigung"]